[Event "*** Titled Tuesday Blitz"]
[Site "Chess.com"]
[Date "2019.02.05"]
[Round "3"]
[White "PowerThinking2650"]
[Black "saraswathii"]
[Result "1-0"]
[WhiteElo "2255"]
[BlackElo "2241"]
[TimeControl "180+2"]
[EndTime "13:33:49 PST"]
[Termination "PowerThinking2650 won by resignation"]

1. e4 {[%clk 0:03:01.9]} 1... c5 {[%clk 0:02:57.4]} 2. Nf3 {[%clk 0:03:03]} 2...
e6 {[%clk 0:02:58.4]} 3. d4 {[%clk 0:03:04.5]} 3... cxd4 {[%clk 0:02:59.8]} 4.
Nxd4 {[%clk 0:03:06.4]} 4... Nf6 {[%clk 0:03:00.6]} 5. Nc3 {[%clk 0:03:07.1]}
5... Nc6 {[%clk 0:03:02]} 6. Ndb5 {[%clk 0:03:07]} 6... Bb4 {[%clk 0:03:02.7]}
7. a3 {[%clk 0:03:05.8]} 7... Bxc3+ {[%clk 0:03:03.8]} 8. Nxc3 {[%clk
0:03:07.7]} 8... d5 {[%clk 0:03:04.3]} 9. exd5 {[%clk 0:03:09.6]} 9... exd5
{[%clk 0:03:06.2]} 10. Bd3 {[%clk 0:03:11.5]} 10... d4 {[%clk 0:03:06.6]} 11.
Ne2 {[%clk 0:03:11.7]} 11... O-O {[%clk 0:03:07.4]} 12. O-O {[%clk 0:03:12.8]}
12... Qd5 {[%clk 0:03:02.2]} 13. h3 {[%clk 0:03:08.7]} 13... Re8 {[%clk
0:02:56.9]} 14. Nf4 {[%clk 0:03:09.2]} 14... Qd6 {[%clk 0:02:57.4]} 15. Qf3
{[%clk 0:03:08.2]} 15... Ne5 {[%clk 0:02:57.6]} 16. Qg3 {[%clk 0:03:06.5]} 16...
Nxd3 {[%clk 0:02:58.4]} 17. Nxd3 {[%clk 0:03:05.3]} 17... Qxg3 {[%clk
0:02:58.3]} 18. fxg3 {[%clk 0:03:07.2]} 18... Bd7 {[%clk 0:02:53.4]} 19. Bf4
{[%clk 0:02:56.5]} 19... Rac8 {[%clk 0:02:53.2]} 20. Rac1 {[%clk 0:02:54.6]}
20... Bb5 {[%clk 0:02:48.8]} 21. Rfe1 {[%clk 0:02:50.1]} 21... Nd5 {[%clk
0:02:26.9]} 22. Bd2 {[%clk 0:02:35]} 22... f6 {[%clk 0:02:23]} 23. Nf4 {[%clk
0:02:29.8]} 23... Ne3 {[%clk 0:02:16.6]} 24. c3 {[%clk 0:02:21.5]} 24... Nc4
{[%clk 0:02:13.5]} 25. Rxe8+ {[%clk 0:02:07.8]} 25... Rxe8 {[%clk 0:02:13.1]}
26. Be1 {[%clk 0:02:06.9]} 26... g5 {[%clk 0:02:04.2]} 27. Nd5 {[%clk
0:02:00.4]} 27... Rf8 {[%clk 0:01:25.5]} 28. cxd4 {[%clk 0:01:45]} 28... Nxb2
{[%clk 0:01:21]} 29. Rb1 {[%clk 0:01:40.7]} 29... Bc4 {[%clk 0:01:18.1]} 30. Ne3
{[%clk 0:01:37.7]} 30... Re8 {[%clk 0:01:15.8]} 31. Bf2 {[%clk 0:01:25.3]} 1-0

[Event "*** Titled Tuesday Blitz"]
[Site "Chess.com"]
[Date "2019.02.05"]
[Round "3"]
[White "nocnypako"]
[Black "talento10"]
[Result "1-0"]
[WhiteElo "2350"]
[BlackElo "2438"]
[TimeControl "180+2"]
[EndTime "13:33:50 PST"]
[Termination "nocnypako won by resignation"]

1. d4 {[%clk 0:03:01.9]} 1... Nf6 {[%clk 0:03:00.1]} 2. c4 {[%clk 0:03:02.5]}
2... g6 {[%clk 0:03:01.3]} 3. Nc3 {[%clk 0:03:03.4]} 3... Bg7 {[%clk 0:03:02.5]}
4. e4 {[%clk 0:03:03.9]} 4... d6 {[%clk 0:03:03.5]} 5. Nf3 {[%clk 0:03:04.9]}
5... O-O {[%clk 0:03:04.1]} 6. Be2 {[%clk 0:03:06.2]} 6... e5 {[%clk 0:03:05.5]}
7. Be3 {[%clk 0:03:06.8]} 7... Nc6 {[%clk 0:03:06.8]} 8. d5 {[%clk 0:03:07.2]}
8... Ne7 {[%clk 0:03:08.1]} 9. Nd2 {[%clk 0:03:07.6]} 9... Nd7 {[%clk
0:03:09.6]} 10. f3 {[%clk 0:03:08.5]} 10... f5 {[%clk 0:03:10.7]} 11. O-O {[%clk
0:03:09.9]} 11... f4 {[%clk 0:03:11.8]} 12. Bf2 {[%clk 0:03:11.5]} 12... g5
{[%clk 0:03:13.2]} 13. b4 {[%clk 0:03:12.6]} 13... Rf7 {[%clk 0:02:03.5]} 14. c5
{[%clk 0:03:11]} 14... Ng6 {[%clk 0:01:48.7]} 15. Nc4 {[%clk 0:03:02.7]} 15...
Nf6 {[%clk 0:01:30.6]} 16. Rc1 {[%clk 0:02:57]} 16... g4 {[%clk 0:00:21.1]} 17.
fxg4 {[%clk 0:02:50.7]} 17... Bf8 {[%clk 0:00:22.4]} 18. cxd6 {[%clk 0:02:35.5]}
18... cxd6 {[%clk 0:00:22.1]} 19. g5 {[%clk 0:02:22.6]} 19... Ne8 {[%clk
0:00:21.6]} 20. h4 {[%clk 0:02:22.1]} 20... b6 {[%clk 0:00:21.9]} 21. Bg4 {[%clk
0:02:18.6]} 21... Bxg4 {[%clk 0:00:21.2]} 22. Qxg4 {[%clk 0:02:20.5]} 22... Rc8
{[%clk 0:00:21.8]} 23. Nb5 {[%clk 0:01:59.9]} 23... Ng7 {[%clk 0:00:13]} 24.
Ncxd6 {[%clk 0:01:48.8]} 24... Rxc1 {[%clk 0:00:11.9]} 25. Rxc1 {[%clk
0:01:50.4]} 25... Bxd6 {[%clk 0:00:11.1]} 26. Rc8 {[%clk 0:01:50.4]} 26... Be7
{[%clk 0:00:10.2]} 27. d6 {[%clk 0:01:47.3]} 1-0

[Event "*** Titled Tuesday Blitz"]
[Site "Chess.com"]
[Date "2019.02.05"]
[Round "3"]
[White "jamengrand"]
[Black "akhairat"]
[Result "1-0"]
[WhiteElo "2300"]
[BlackElo "2229"]
[TimeControl "180+2"]
[EndTime "13:33:57 PST"]
[Termination "jamengrand won by checkmate"]

1. e4 {[%clk 0:03:01.9]} 1... c5 {[%clk 0:03:00]} 2. Nf3 {[%clk 0:03:02.6]} 2...
a6 {[%clk 0:03:01.3]} 3. c3 {[%clk 0:03:02.4]} 3... Nf6 {[%clk 0:03:02.1]} 4. e5
{[%clk 0:03:03.3]} 4... Nd5 {[%clk 0:03:03.5]} 5. d4 {[%clk 0:03:04.4]} 5...
cxd4 {[%clk 0:03:05.4]} 6. cxd4 {[%clk 0:03:05.4]} 6... d6 {[%clk 0:03:07]} 7.
Bc4 {[%clk 0:03:05.8]} 7... Nb6 {[%clk 0:03:07.1]} 8. Bb3 {[%clk 0:03:06.4]}
8... d5 {[%clk 0:03:07.8]} 9. h3 {[%clk 0:03:06.4]} 9... Nc6 {[%clk 0:03:08.7]}
10. O-O {[%clk 0:03:06.9]} 10... Bf5 {[%clk 0:03:08.2]} 11. Nc3 {[%clk
0:03:07.6]} 11... e6 {[%clk 0:03:09.2]} 12. Be3 {[%clk 0:03:07]} 12... Be7
{[%clk 0:03:07.7]} 13. Ne1 {[%clk 0:03:07.2]} 13... h5 {[%clk 0:03:06.3]} 14.
Nd3 {[%clk 0:03:07.5]} 14... Rc8 {[%clk 0:03:01]} 15. Rc1 {[%clk 0:03:06.9]}
15... h4 {[%clk 0:02:49.5]} 16. Nc5 {[%clk 0:02:59.7]} 16... Bxc5 {[%clk
0:02:33.2]} 17. dxc5 {[%clk 0:03:01.6]} 17... Nd7 {[%clk 0:02:34.6]} 18. Ne2
{[%clk 0:02:48.2]} 18... Ndxe5 {[%clk 0:02:32.4]} 19. Nd4 {[%clk 0:02:48.9]}
19... Bg6 {[%clk 0:02:24.2]} 20. Ba4 {[%clk 0:02:41.4]} 20... Kf8 {[%clk
0:02:15.8]} 21. f4 {[%clk 0:02:40.8]} 21... Nc4 {[%clk 0:01:56.5]} 22. f5 {[%clk
0:02:04.6]} 22... Nxe3 {[%clk 0:01:29.2]} 23. fxg6 {[%clk 0:02:05.6]} 23... Nxd1
{[%clk 0:00:52.2]} 24. Nxe6+ {[%clk 0:01:51.5]} 24... Ke7 {[%clk 0:00:49.4]} 25.
Nxd8 {[%clk 0:01:51.9]} 25... Nxd8 {[%clk 0:00:43.4]} 26. Rcxd1 {[%clk
0:01:45.7]} 26... Rxc5 {[%clk 0:00:19.7]} 27. Rde1+ {[%clk 0:01:42.3]} 27... Ne6
{[%clk 0:00:19.1]} 28. Rxf7+ {[%clk 0:01:41.1]} 28... Kd6 {[%clk 0:00:20.7]} 29.
Rd7# {[%clk 0:01:42.2]} 1-0

[Event "*** Titled Tuesday Blitz"]
[Site "Chess.com"]
[Date "2019.02.05"]
[Round "3"]
[White "mishanick"]
[Black "Sosat98"]
[Result "1-0"]
[WhiteElo "3020"]
[BlackElo "2584"]
[TimeControl "180+2"]
[EndTime "13:34:03 PST"]
[Termination "mishanick won by resignation"]

1. d4 {[%clk 0:03:01.9]} 1... d6 {[%clk 0:02:59.2]} 2. Nf3 {[%clk 0:03:03.1]}
2... Bg4 {[%clk 0:02:58.9]} 3. c4 {[%clk 0:03:03.5]} 3... Bxf3 {[%clk 0:02:58]}
4. exf3 {[%clk 0:03:01.4]} 4... e6 {[%clk 0:02:59.5]} 5. f4 {[%clk 0:03:02.1]}
5... c6 {[%clk 0:02:59.8]} 6. Nc3 {[%clk 0:02:58.5]} 6... d5 {[%clk 0:03:00.5]}
7. Be2 {[%clk 0:02:59.2]} 7... Nd7 {[%clk 0:03:00.4]} 8. O-O {[%clk 0:03:00.5]}
8... Bd6 {[%clk 0:03:00.9]} 9. f5 {[%clk 0:02:59.9]} 9... Qh4 {[%clk 0:02:57.6]}
10. g3 {[%clk 0:02:59.9]} 10... Qf6 {[%clk 0:02:58.6]} 11. fxe6 {[%clk
0:02:59.1]} 11... fxe6 {[%clk 0:03:00]} 12. cxd5 {[%clk 0:02:53.7]} 12... cxd5
{[%clk 0:03:00]} 13. Nb5 {[%clk 0:02:50.2]} 13... Bb8 {[%clk 0:03:00.4]} 14. Bg4
{[%clk 0:02:48.6]} 14... Ne7 {[%clk 0:02:52.4]} 15. Re1 {[%clk 0:02:48.1]} 15...
Nf8 {[%clk 0:02:35.6]} 16. h4 {[%clk 0:02:36.3]} 16... h6 {[%clk 0:02:35]} 17.
Re3 {[%clk 0:02:33.9]} 17... Kf7 {[%clk 0:02:32.7]} 18. Rf3 {[%clk 0:02:22.4]}
18... Nf5 {[%clk 0:02:32.7]} 19. Qd3 {[%clk 0:02:23.2]} 19... g6 {[%clk
0:02:30.1]} 20. h5 {[%clk 0:02:23.8]} 20... Nh7 {[%clk 0:02:17.4]} 21. Nc3
{[%clk 0:02:18.5]} 21... Rd8 {[%clk 0:02:02.8]} 22. Bxh6 {[%clk 0:02:07.3]}
22... Ng5 {[%clk 0:02:02.5]} 23. hxg6+ {[%clk 0:01:57.8]} 23... Kxg6 {[%clk
0:02:02.5]} 24. Bxg5 {[%clk 0:01:58.7]} 24... Qxg5 {[%clk 0:01:58.8]} 25. Bxf5+
{[%clk 0:01:59.8]} 25... exf5 {[%clk 0:01:59.4]} 26. Re1 {[%clk 0:02:01.4]}
26... Kf6 {[%clk 0:01:14.2]} 27. Qe2 {[%clk 0:02:00.9]} 27... Kg6 {[%clk
0:01:15.2]} 28. Qc2 {[%clk 0:01:51.7]} 28... Qg4 {[%clk 0:01:05.7]} 29. Re6+
{[%clk 0:01:28.3]} 29... Kf7 {[%clk 0:00:48.1]} 30. Qe2 {[%clk 0:01:28.3]} 30...
Bd6 {[%clk 0:00:47.1]} 31. Nxd5 {[%clk 0:01:25.7]} 31... Re8 {[%clk 0:00:46.9]}
32. Rxe8 {[%clk 0:01:22.7]} 32... Rxe8 {[%clk 0:00:45.3]} 33. Qxe8+ {[%clk
0:01:24.6]} 1-0

[Event "*** Titled Tuesday Blitz"]
[Site "Chess.com"]
[Date "2019.02.05"]
[Round "3"]
[White "evgenysharapov"]
[Black "cyber-alekhine2"]
[Result "1-0"]
[WhiteElo "2320"]
[BlackElo "2215"]
[TimeControl "180+2"]
[EndTime "13:34:04 PST"]
[Termination "evgenysharapov won by resignation"]

1. e4 {[%clk 0:03:00.6]} 1... c5 {[%clk 0:01:45.3]} 2. Nf3 {[%clk 0:02:59.6]}
2... d6 {[%clk 0:01:36.4]} 3. d4 {[%clk 0:02:59.7]} 3... cxd4 {[%clk 0:01:38.3]}
4. Nxd4 {[%clk 0:03:00.7]} 4... Nf6 {[%clk 0:01:40.2]} 5. f3 {[%clk 0:03:00.9]}
5... g6 {[%clk 0:01:42.1]} 6. c4 {[%clk 0:03:01.4]} 6... Bg7 {[%clk 0:01:43.4]}
7. Be3 {[%clk 0:03:01.7]} 7... O-O {[%clk 0:01:43.5]} 8. Nc3 {[%clk 0:03:02]}
8... Nc6 {[%clk 0:01:44.2]} 9. Be2 {[%clk 0:03:02.9]} 9... Bd7 {[%clk
0:01:45.1]} 10. O-O {[%clk 0:03:03.3]} 10... Nxd4 {[%clk 0:01:46.2]} 11. Bxd4
{[%clk 0:03:04.1]} 11... Bc6 {[%clk 0:01:47.7]} 12. Qd2 {[%clk 0:03:04.2]} 12...
a5 {[%clk 0:01:46.8]} 13. Be3 {[%clk 0:03:03.7]} 13... Nd7 {[%clk 0:01:46.8]}
14. Rab1 {[%clk 0:03:03]} 14... Nc5 {[%clk 0:01:47.8]} 15. Rfc1 {[%clk
0:03:03.3]} 15... Qb6 {[%clk 0:01:48.4]} 16. Rc2 {[%clk 0:03:02.2]} 16... Kh8
{[%clk 0:01:39.7]} 17. Kh1 {[%clk 0:03:01.7]} 17... f5 {[%clk 0:01:40.7]} 18.
exf5 {[%clk 0:03:00.9]} 18... Rxf5 {[%clk 0:01:41.3]} 19. Bd4 {[%clk 0:02:43.7]}
19... Bxd4 {[%clk 0:01:17.4]} 20. Qxd4+ {[%clk 0:02:43.4]} 20... e5 {[%clk
0:01:18.6]} 21. Qd2 {[%clk 0:02:31.5]} 21... Ne6 {[%clk 0:01:03.7]} 22. Bd3
{[%clk 0:02:29.5]} 22... Rxf3 {[%clk 0:00:53.7]} 23. Nd5 {[%clk 0:02:19]} 23...
Bxd5 {[%clk 0:00:19.7]} 24. cxd5 {[%clk 0:02:18.6]} 24... Rxd3 {[%clk
0:00:18.9]} 25. Qxd3 {[%clk 0:02:18.6]} 25... Nc5 {[%clk 0:00:20.4]} 26. Qf3
{[%clk 0:02:16]} 26... e4 {[%clk 0:00:19.9]} 27. Qf6+ {[%clk 0:02:14.1]} 27...
Kg8 {[%clk 0:00:21.3]} 28. Rf1 {[%clk 0:02:10.2]} 28... e3 {[%clk 0:00:16.2]}
29. Qe7 {[%clk 0:02:01.1]} 29... Qb4 {[%clk 0:00:14.3]} 30. Qxe3 {[%clk
0:01:50.6]} 1-0

[Event "*** Titled Tuesday Blitz"]
[Site "Chess.com"]
[Date "2019.02.05"]
[Round "3"]
[White "Grischuk"]
[Black "Alexander_Donchenko"]
[Result "1-0"]
[WhiteElo "3040"]
[BlackElo "2671"]
[TimeControl "180+2"]
[EndTime "13:34:06 PST"]
[Termination "Grischuk won by resignation"]

1. Nf3 {[%clk 0:03:01.9]} 1... Nf6 {[%clk 0:03:00.9]} 2. g3 {[%clk 0:03:02.8]}
2... b6 {[%clk 0:03:01.3]} 3. Bg2 {[%clk 0:03:02.6]} 3... Bb7 {[%clk 0:03:02.7]}
4. O-O {[%clk 0:03:04.3]} 4... g6 {[%clk 0:03:03.9]} 5. d3 {[%clk 0:02:59.2]}
5... Bg7 {[%clk 0:03:02.8]} 6. e4 {[%clk 0:03:00.2]} 6... O-O {[%clk 0:03:04.3]}
7. Re1 {[%clk 0:02:58.5]} 7... c5 {[%clk 0:03:04.8]} 8. Nbd2 {[%clk 0:02:58.4]}
8... d6 {[%clk 0:03:03.1]} 9. c3 {[%clk 0:02:58.9]} 9... Nc6 {[%clk 0:03:02.6]}
10. a3 {[%clk 0:02:57.2]} 10... Qd7 {[%clk 0:02:52.4]} 11. d4 {[%clk 0:02:53.3]}
11... d5 {[%clk 0:02:41.9]} 12. exd5 {[%clk 0:02:33.6]} 12... Nxd5 {[%clk
0:02:20.6]} 13. dxc5 {[%clk 0:02:34.2]} 13... Rfd8 {[%clk 0:02:19.4]} 14. cxb6
{[%clk 0:02:14.4]} 14... axb6 {[%clk 0:02:20.1]} 15. Qb3 {[%clk 0:02:10.9]}
15... Na5 {[%clk 0:02:19.2]} 16. Qc2 {[%clk 0:02:12.5]} 16... Rac8 {[%clk
0:02:17.1]} 17. Ne5 {[%clk 0:01:56.8]} 17... Qd6 {[%clk 0:02:00.1]} 18. Ndf3
{[%clk 0:01:57.7]} 18... f6 {[%clk 0:02:00.4]} 19. Nxg6 {[%clk 0:01:42.7]} 19...
hxg6 {[%clk 0:01:58.7]} 20. Qxg6 {[%clk 0:01:44.6]} 20... f5 {[%clk 0:01:28.3]}
21. Re6 {[%clk 0:01:43.1]} 21... Nxc3 {[%clk 0:00:54.8]} 22. Bh6 {[%clk
0:01:17.5]} 22... Ne2+ {[%clk 0:00:44.2]} 23. Kf1 {[%clk 0:01:18.7]} 23... Nxg3+
{[%clk 0:00:15.5]} 24. hxg3 {[%clk 0:01:17]} 1-0

[Event "*** Titled Tuesday Blitz"]
[Site "Chess.com"]
[Date "2019.02.05"]
[Round "3"]
[White "vovachesss"]
[Black "Satscho"]
[Result "1-0"]
[WhiteElo "2580"]
[BlackElo "2315"]
[TimeControl "180+2"]
[EndTime "13:34:10 PST"]
[Termination "vovachesss won by resignation"]

1. e4 {[%clk 0:02:54.1]} 1... c5 {[%clk 0:03:00.1]} 2. d4 {[%clk 0:02:46.5]}
2... cxd4 {[%clk 0:03:00.7]} 3. c3 {[%clk 0:02:47.8]} 3... Nf6 {[%clk
0:03:02.3]} 4. e5 {[%clk 0:02:48.5]} 4... Nd5 {[%clk 0:03:03.7]} 5. Nf3 {[%clk
0:02:49.4]} 5... e6 {[%clk 0:03:04.7]} 6. Bc4 {[%clk 0:02:48.2]} 6... Nb6 {[%clk
0:03:00.7]} 7. Bb3 {[%clk 0:02:47.3]} 7... Nc6 {[%clk 0:03:00.9]} 8. O-O {[%clk
0:02:47.3]} 8... d6 {[%clk 0:03:02.2]} 9. exd6 {[%clk 0:02:47.7]} 9... Bxd6
{[%clk 0:03:02.9]} 10. Nxd4 {[%clk 0:02:48.9]} 10... Nxd4 {[%clk 0:03:01.9]} 11.
Qxd4 {[%clk 0:02:50.8]} 11... Qc7 {[%clk 0:03:00.8]} 12. Qh4 {[%clk 0:02:49.2]}
12... Be7 {[%clk 0:02:56.1]} 13. Qh5 {[%clk 0:02:40.6]} 13... Qc5 {[%clk
0:02:53.2]} 14. Qg4 {[%clk 0:02:29.4]} 14... O-O {[%clk 0:02:51.7]} 15. Be3
{[%clk 0:02:26]} 15... Qc7 {[%clk 0:02:34.6]} 16. Nd2 {[%clk 0:02:15.8]} 16...
e5 {[%clk 0:02:32]} 17. Qg3 {[%clk 0:02:17]} 17... Bf5 {[%clk 0:02:32.8]} 18.
Rfe1 {[%clk 0:02:10.3]} 18... Rfe8 {[%clk 0:02:31.4]} 19. Bxb6 {[%clk
0:02:03.6]} 19... Qxb6 {[%clk 0:02:10.3]} 20. Qxe5 {[%clk 0:01:54.6]} 20... Bg6
{[%clk 0:02:10.4]} 21. Nc4 {[%clk 0:01:52.1]} 21... Qc6 {[%clk 0:02:09.5]} 22.
Rad1 {[%clk 0:01:36.8]} 22... a5 {[%clk 0:02:07.7]} 23. Nxa5 {[%clk 0:01:31.7]}
23... Qa6 {[%clk 0:01:51.5]} 24. Nc4 {[%clk 0:00:57.2]} 24... h6 {[%clk
0:01:30.8]} 25. Qg3 {[%clk 0:00:45.4]} 25... b5 {[%clk 0:01:19.7]} 26. Ne5
{[%clk 0:00:41.3]} 26... Bd6 {[%clk 0:01:07.5]} 27. Qxg6 {[%clk 0:00:42.2]}
27... Bxe5 {[%clk 0:01:06]} 28. Bxf7+ {[%clk 0:00:40.9]} 28... Kh8 {[%clk
0:01:06.5]} 29. Qxa6 {[%clk 0:00:38.3]} 1-0

[Event "*** Titled Tuesday Blitz"]
[Site "Chess.com"]
[Date "2019.02.05"]
[Round "3"]
[White "ChessWarrior7197"]
[Black "Sashadav97"]
[Result "1-0"]
[WhiteElo "2883"]
[BlackElo "2630"]
[TimeControl "180+2"]
[EndTime "13:34:21 PST"]
[Termination "ChessWarrior7197 won by resignation"]

1. e4 {[%clk 0:03:01.9]} 1... c5 {[%clk 0:03:01]} 2. Nf3 {[%clk 0:03:02.3]} 2...
Nc6 {[%clk 0:03:02.6]} 3. Bb5 {[%clk 0:03:02.2]} 3... g6 {[%clk 0:03:03.8]} 4.
Bxc6 {[%clk 0:03:03.1]} 4... dxc6 {[%clk 0:03:05.7]} 5. d3 {[%clk 0:03:04]} 5...
Bg7 {[%clk 0:03:05.7]} 6. Nc3 {[%clk 0:03:05.2]} 6... e5 {[%clk 0:03:02.7]} 7.
h3 {[%clk 0:03:04]} 7... b6 {[%clk 0:03:02.8]} 8. Be3 {[%clk 0:03:02.9]} 8...
Qe7 {[%clk 0:03:03.6]} 9. O-O {[%clk 0:03:02.9]} 9... Nf6 {[%clk 0:02:57.5]} 10.
Qd2 {[%clk 0:03:03.5]} 10... h6 {[%clk 0:02:58.4]} 11. Nh2 {[%clk 0:03:04.4]}
11... Nd7 {[%clk 0:02:59.3]} 12. f4 {[%clk 0:03:05]} 12... exf4 {[%clk
0:03:00.5]} 13. Bxf4 {[%clk 0:03:06.1]} 13... Ne5 {[%clk 0:02:52]} 14. Nf3
{[%clk 0:03:03.6]} 14... Nxf3+ {[%clk 0:02:48.6]} 15. Rxf3 {[%clk 0:03:04.2]}
15... g5 {[%clk 0:02:50.1]} 16. Bh2 {[%clk 0:03:01.3]} 16... Be6 {[%clk
0:02:49.6]} 17. Raf1 {[%clk 0:03:01.4]} 17... Bd4+ {[%clk 0:02:39.3]} 18. Kh1
{[%clk 0:03:00.9]} 18... h5 {[%clk 0:02:32.3]} 19. Ne2 {[%clk 0:02:51.3]} 19...
g4 {[%clk 0:02:33.1]} 20. Nxd4 {[%clk 0:02:50.6]} 20... cxd4 {[%clk 0:02:33.3]}
21. Rf6 {[%clk 0:02:41.9]} 21... gxh3 {[%clk 0:02:34.4]} 22. gxh3 {[%clk
0:02:43.4]} 22... O-O-O {[%clk 0:02:22.4]} 23. Qf4 {[%clk 0:02:42.4]} 23... Kb7
{[%clk 0:02:18.4]} 24. Qe5 {[%clk 0:02:43.2]} 24... Qd7 {[%clk 0:02:14]} 25. a3
{[%clk 0:02:41.7]} 25... Rh7 {[%clk 0:02:08.3]} 26. Qf4 {[%clk 0:02:28.7]} 26...
Bxh3 {[%clk 0:01:59.6]} 27. Rf2 {[%clk 0:02:24.4]} 27... Be6 {[%clk 0:01:58.1]}
28. Qg5 {[%clk 0:02:24.7]} 28... h4 {[%clk 0:01:54.1]} 29. b4 {[%clk 0:02:19.9]}
29... h3 {[%clk 0:01:52.5]} 30. a4 {[%clk 0:02:19.5]} 30... a6 {[%clk
0:01:52.3]} 31. a5 {[%clk 0:02:17.8]} 31... Rhh8 {[%clk 0:01:03.5]} 32. axb6
{[%clk 0:02:17.2]} 32... Rhg8 {[%clk 0:01:04.4]} 33. Qe5 {[%clk 0:02:16.1]}
33... Kxb6 {[%clk 0:01:01.5]} 34. Qh5 {[%clk 0:01:37]} 34... Kb7 {[%clk
0:00:59.1]} 35. Rxf7 {[%clk 0:01:38.1]} 35... Bxf7 {[%clk 0:00:52.3]} 36. Rxf7
{[%clk 0:01:38.5]} 36... Rg2 {[%clk 0:00:47.5]} 37. Rxd7+ {[%clk 0:01:38.8]}
37... Rxd7 {[%clk 0:00:49.4]} 38. Qxh3 {[%clk 0:01:40.4]} 38... Rdg7 {[%clk
0:00:50.8]} 39. Qxg2 {[%clk 0:01:41.2]} 39... Rxg2 {[%clk 0:00:48.4]} 40. Kxg2
{[%clk 0:01:43.1]} 40... c5 {[%clk 0:00:50.3]} 41. bxc5 {[%clk 0:01:42.5]} 41...
a5 {[%clk 0:00:51.6]} 42. Be5 {[%clk 0:01:43.2]} 1-0

[Event "*** Titled Tuesday Blitz"]
[Site "Chess.com"]
[Date "2019.02.05"]
[Round "3"]
[White "Zufi1811"]
[Black "IakovUlivar"]
[Result "0-1"]
[WhiteElo "2352"]
[BlackElo "2510"]
[TimeControl "180+2"]
[EndTime "13:34:25 PST"]
[Termination "IakovUlivar won by checkmate"]

1. Nf3 {[%clk 0:03:01.9]} 1... Nf6 {[%clk 0:03:00.3]} 2. d4 {[%clk 0:03:00]}
2... e6 {[%clk 0:03:00]} 3. e3 {[%clk 0:02:59.7]} 3... d5 {[%clk 0:02:57.7]} 4.
Bd3 {[%clk 0:03:01]} 4... c5 {[%clk 0:02:56.7]} 5. b3 {[%clk 0:03:02]} 5... Nc6
{[%clk 0:02:54.2]} 6. O-O {[%clk 0:03:01.4]} 6... b6 {[%clk 0:02:54]} 7. Bb2
{[%clk 0:03:01.4]} 7... Bb7 {[%clk 0:02:49.9]} 8. Nbd2 {[%clk 0:03:01.3]} 8...
Rc8 {[%clk 0:02:50.2]} 9. a3 {[%clk 0:03:01.5]} 9... cxd4 {[%clk 0:02:50.9]} 10.
exd4 {[%clk 0:03:01.2]} 10... g6 {[%clk 0:02:52.2]} 11. Ne5 {[%clk 0:02:38.4]}
11... Bg7 {[%clk 0:02:48.2]} 12. f4 {[%clk 0:02:36.5]} 12... O-O {[%clk
0:02:48.8]} 13. Qe2 {[%clk 0:02:36.6]} 13... Ne7 {[%clk 0:02:36.7]} 14. Rac1
{[%clk 0:02:32.2]} 14... Nf5 {[%clk 0:02:28.4]} 15. g4 {[%clk 0:02:21]} 15...
Nd6 {[%clk 0:02:26]} 16. f5 {[%clk 0:02:18.9]} 16... exf5 {[%clk 0:02:18.4]} 17.
gxf5 {[%clk 0:02:20.8]} 17... Nfe4 {[%clk 0:02:14.9]} 18. fxg6 {[%clk
0:02:10.8]} 18... Qg5+ {[%clk 0:01:55.3]} 19. Kh1 {[%clk 0:01:56.3]} 19... Qxd2
{[%clk 0:01:31.7]} 20. gxh7+ {[%clk 0:01:56.8]} 20... Kh8 {[%clk 0:01:30.9]} 21.
Qg4 {[%clk 0:01:14.9]} 21... Bxe5 {[%clk 0:00:37.6]} 22. dxe5 {[%clk 0:01:12.9]}
22... d4 {[%clk 0:00:38.9]} 23. Rcd1 {[%clk 0:00:27.9]} 23... Ng3+ {[%clk
0:00:38.3]} 24. Kg1 {[%clk 0:00:29.2]} 24... Qg2# {[%clk 0:00:39.1]} 0-1

[Event "*** Titled Tuesday Blitz"]
[Site "Chess.com"]
[Date "2019.02.05"]
[Round "3"]
[White "Caminator2000"]
[Black "justantan"]
[Result "0-1"]
[WhiteElo "2502"]
[BlackElo "2700"]
[TimeControl "180+2"]
[EndTime "13:34:38 PST"]
[Termination "justantan won by resignation"]

1. d4 {[%clk 0:03:01.9]} 1... d5 {[%clk 0:02:58.3]} 2. c4 {[%clk 0:03:02.2]}
2... e6 {[%clk 0:02:59.4]} 3. Nf3 {[%clk 0:03:02.4]} 3... a6 {[%clk 0:02:59.3]}
4. g3 {[%clk 0:02:33.9]} 4... dxc4 {[%clk 0:03:00.1]} 5. a4 {[%clk 0:02:33.2]}
5... c5 {[%clk 0:03:00.5]} 6. Bg2 {[%clk 0:02:32.3]} 6... Nc6 {[%clk 0:03:01.6]}
7. Be3 {[%clk 0:02:24.1]} 7... Nge7 {[%clk 0:02:54.2]} 8. Na3 {[%clk 0:01:44.3]}
8... Nf5 {[%clk 0:02:54.2]} 9. dxc5 {[%clk 0:01:42.1]} 9... Qxd1+ {[%clk
0:02:50.7]} 10. Rxd1 {[%clk 0:01:43.6]} 10... Nxe3 {[%clk 0:02:51.3]} 11. fxe3
{[%clk 0:01:45]} 11... Bxc5 {[%clk 0:02:31]} 12. Nxc4 {[%clk 0:01:45.8]} 12...
Ke7 {[%clk 0:02:29.9]} 13. Nd4 {[%clk 0:01:46.7]} 13... Nb4 {[%clk 0:02:28.3]}
14. Kf2 {[%clk 0:01:45.6]} 14... Bd7 {[%clk 0:02:25.5]} 15. Bxb7 {[%clk
0:01:33.1]} 15... Rab8 {[%clk 0:02:25.4]} 16. Bf3 {[%clk 0:01:33.5]} 16... Bxa4
{[%clk 0:02:25.1]} 17. b3 {[%clk 0:01:34.9]} 17... Be8 {[%clk 0:02:19.7]} 18.
Rc1 {[%clk 0:01:29.4]} 18... f6 {[%clk 0:02:01.3]} 19. Rhd1 {[%clk 0:01:29]}
19... Bd7 {[%clk 0:01:52.4]} 20. Bg4 {[%clk 0:00:49]} 20... Rhc8 {[%clk
0:01:46.5]} 21. h4 {[%clk 0:00:29.1]} 21... Nd5 {[%clk 0:01:38.4]} 22. Na5
{[%clk 0:00:23.4]} 22... Nxe3 {[%clk 0:01:12.4]} 23. Kxe3 {[%clk 0:00:18.3]}
23... Bxd4+ {[%clk 0:01:07.2]} 24. Kxd4 {[%clk 0:00:15.8]} 24... Rxc1 {[%clk
0:01:01.2]} 25. Rxc1 {[%clk 0:00:16.7]} 25... Rb4+ {[%clk 0:01:02.3]} 26. Rc4
{[%clk 0:00:15.6]} 26... e5+ {[%clk 0:01:03.4]} 27. Kd5 {[%clk 0:00:14.8]} 27...
Rxc4 {[%clk 0:01:03.4]} 28. Bxd7 {[%clk 0:00:16.2]} 28... Rd4+ {[%clk
0:01:04.2]} 0-1